[Event "Late-Titled-Tuesday-Blitz-May-14-2024"]
[Site "Chess.com"]
[Date "2024.05.14"]
[Round "6"]
[White "Atanejhad"]
[Black "OriTaichman"]
[Result "0-1"]
[WhiteElo "2478"]
[BlackElo "2644"]
[TimeControl "180+1"]
[EndTime "15:06:43 PDT"]
[Termination "OriTaichman won by resignation"]

1. d4 {[%clk 0:03:00.9]} 1... Nf6 {[%clk 0:02:53.9]} 2. c4 {[%clk 0:03:00.3]}
2... g6 {[%clk 0:02:54.2]} 3. Nc3 {[%clk 0:02:59.3]} 3... Bg7 {[%clk 0:02:54.8]}
4. e4 {[%clk 0:02:58.7]} 4... O-O {[%clk 0:02:55.7]} 5. f3 {[%clk 0:02:57.9]}
5... Nc6 {[%clk 0:02:55.2]} 6. Be3 {[%clk 0:02:56.8]} 6... e5 {[%clk 0:02:55.6]}
7. Nge2 {[%clk 0:02:56.2]} 7... exd4 {[%clk 0:02:47.5]} 8. Nxd4 {[%clk
0:02:57.1]} 8... Ne5 {[%clk 0:02:29.8]} 9. Qd2 {[%clk 0:02:56.4]} 9... c6 {[%clk
0:02:30.2]} 10. O-O-O {[%clk 0:02:29.4]} 10... d5 {[%clk 0:02:30.4]} 11. cxd5
{[%clk 0:02:24.5]} 11... cxd5 {[%clk 0:02:31.3]} 12. f4 {[%clk 0:02:23.3]} 12...
Neg4 {[%clk 0:02:25.1]} 13. e5 {[%clk 0:02:23]} 13... Nxe3 {[%clk 0:02:17.2]}
14. Qxe3 {[%clk 0:02:23.9]} 14... Ng4 {[%clk 0:02:05]} 15. Qf3 {[%clk
0:02:23.2]} 15... f6 {[%clk 0:01:58.7]} 16. e6 {[%clk 0:02:20]} 16... f5 {[%clk
0:01:50.9]} 17. h3 {[%clk 0:02:15]} 17... Nf6 {[%clk 0:01:49.3]} 18. g4 {[%clk
0:02:08.5]} 18... Ne4 {[%clk 0:01:45.4]} 19. gxf5 {[%clk 0:02:08.4]} 19... gxf5
{[%clk 0:01:40.4]} 20. Rg1 {[%clk 0:02:07.4]} 20... Kh8 {[%clk 0:01:38.5]} 21.
Kb1 {[%clk 0:01:54.8]} 21... Nxc3+ {[%clk 0:00:53]} 22. Qxc3 {[%clk 0:01:53.6]}
22... Qf6 {[%clk 0:00:49.9]} 23. Qe3 {[%clk 0:01:43.7]} 23... Re8 {[%clk
0:00:47.2]} 24. Rxg7 {[%clk 0:00:55.3]} 24... Kxg7 {[%clk 0:00:42.2]} 25. Bd3
{[%clk 0:00:49.4]} 25... Bxe6 {[%clk 0:00:39.9]} 26. Qf2 {[%clk 0:00:42.3]}
26... Kh8 {[%clk 0:00:37.3]} 27. Nf3 {[%clk 0:00:41.1]} 27... d4 {[%clk
0:00:36.3]} 28. Ne5 {[%clk 0:00:36.7]} 28... Rad8 {[%clk 0:00:27.4]} 29. Rg1
{[%clk 0:00:35.7]} 29... Rg8 {[%clk 0:00:27.4]} 30. Rxg8+ {[%clk 0:00:28.8]}
30... Bxg8 {[%clk 0:00:27.1]} 31. Qg1 {[%clk 0:00:23.3]} 31... Qe6 {[%clk
0:00:18.7]} 32. Bc4 {[%clk 0:00:20.1]} 32... Qf6 {[%clk 0:00:18.7]} 33. Bxg8
{[%clk 0:00:19.7]} 33... Rxg8 {[%clk 0:00:18.5]} 34. Qxd4 {[%clk 0:00:20.2]}
34... Rg7 {[%clk 0:00:17]} 35. Qd5 {[%clk 0:00:18.7]} 35... h6 {[%clk 0:00:17]}
36. Qc5 {[%clk 0:00:17.2]} 36... a6 {[%clk 0:00:16.8]} 37. Qc8+ {[%clk
0:00:16.8]} 37... Kh7 {[%clk 0:00:17.2]} 38. Kc2 {[%clk 0:00:17.3]} 38... b5
{[%clk 0:00:14]} 39. a3 {[%clk 0:00:17.1]} 39... a5 {[%clk 0:00:13.8]} 40. Kb3
{[%clk 0:00:16.7]} 40... a4+ {[%clk 0:00:13.5]} 41. Kb4 {[%clk 0:00:16.7]} 41...
Qd6+ {[%clk 0:00:13.6]} 42. Kxb5 {[%clk 0:00:13.9]} 42... Qd5+ {[%clk
0:00:13.8]} 43. Qc5 {[%clk 0:00:13.3]} 43... Rb7+ {[%clk 0:00:13.3]} 44. Kxa4
{[%clk 0:00:09.9]} 44... Qxc5 {[%clk 0:00:14.2]} 0-1

[Event "Late-Titled-Tuesday-Blitz-May-14-2024"]
[Site "Chess.com"]
[Date "2024.05.14"]
[Round "6"]
[White "Roedor"]
[Black "ritanovikova"]
[Result "1-0"]
[WhiteElo "2381"]
[BlackElo "2149"]
[TimeControl "180+1"]
[EndTime "15:06:48 PDT"]
[Termination "Roedor won by checkmate"]

1. Nf3 {[%clk 0:03:00.9]} 1... Nf6 {[%clk 0:02:59.2]} 2. c4 {[%clk 0:03:00.2]}
2... g6 {[%clk 0:02:58.9]} 3. g3 {[%clk 0:03:00.3]} 3... Bg7 {[%clk 0:02:59.8]}
4. Bg2 {[%clk 0:03:00.9]} 4... O-O {[%clk 0:03:00.7]} 5. O-O {[%clk 0:03:01.5]}
5... Re8 {[%clk 0:02:56.5]} 6. Nc3 {[%clk 0:03:01.5]} 6... e5 {[%clk 0:02:56.2]}
7. d3 {[%clk 0:02:58.7]} 7... c6 {[%clk 0:02:55.8]} 8. e4 {[%clk 0:02:56.5]}
8... d5 {[%clk 0:02:54.9]} 9. cxd5 {[%clk 0:02:56.5]} 9... cxd5 {[%clk
0:02:55.8]} 10. Bg5 {[%clk 0:02:57.1]} 10... d4 {[%clk 0:02:52.3]} 11. Nd5
{[%clk 0:02:56.4]} 11... h6 {[%clk 0:02:52.4]} 12. Nxf6+ {[%clk 0:02:55.3]}
12... Bxf6 {[%clk 0:02:52.4]} 13. Bxh6 {[%clk 0:02:55.9]} 13... Bg4 {[%clk
0:02:51.9]} 14. Qd2 {[%clk 0:02:52.2]} 14... Nc6 {[%clk 0:02:45.5]} 15. Rac1
{[%clk 0:02:45.9]} 15... Qd7 {[%clk 0:02:44.5]} 16. Bg5 {[%clk 0:02:44.4]} 16...
Bg7 {[%clk 0:02:37.9]} 17. Bh6 {[%clk 0:02:38.3]} 17... Bf6 {[%clk 0:02:37.6]}
18. Ng5 {[%clk 0:02:24.1]} 18... Rac8 {[%clk 0:02:19.6]} 19. f3 {[%clk
0:02:22.4]} 19... Be6 {[%clk 0:02:11.3]} 20. Nxe6 {[%clk 0:02:19.9]} 20... Qxe6
{[%clk 0:02:11.3]} 21. h4 {[%clk 0:02:16.3]} 21... Qxa2 {[%clk 0:02:09.5]} 22.
Bh3 {[%clk 0:02:14.3]} 22... Rcd8 {[%clk 0:02:01.7]} 23. Ra1 {[%clk 0:02:13.4]}
23... Qb3 {[%clk 0:01:59.8]} 24. Ra3 {[%clk 0:02:08.3]} 24... Qb6 {[%clk
0:01:55.5]} 25. Rc1 {[%clk 0:02:05.3]} 25... a6 {[%clk 0:01:52.9]} 26. h5 {[%clk
0:02:05.5]} 26... Be7 {[%clk 0:01:47]} 27. hxg6 {[%clk 0:02:03]} 27... fxg6
{[%clk 0:01:25.8]} 28. Bg5 {[%clk 0:01:53.9]} 28... Bxa3 {[%clk 0:01:17]} 29.
Bxd8 {[%clk 0:01:53.4]} 29... Qxd8 {[%clk 0:01:08.1]} 30. bxa3 {[%clk
0:01:49.2]} 30... Qe7 {[%clk 0:01:08.1]} 31. Rb1 {[%clk 0:01:33.6]} 31... b5
{[%clk 0:01:04.6]} 32. Rc1 {[%clk 0:01:32]} 32... Nd8 {[%clk 0:00:54.6]} 33. Qh6
{[%clk 0:01:21.7]} 33... Qg7 {[%clk 0:00:36.8]} 34. Qg5 {[%clk 0:01:20.8]} 34...
Nf7 {[%clk 0:00:25.5]} 35. Qd2 {[%clk 0:00:52.9]} 35... Qf6 {[%clk 0:00:24.9]}
36. Bg4 {[%clk 0:00:49.3]} 36... Kg7 {[%clk 0:00:22]} 37. Rc7 {[%clk 0:00:48.6]}
37... Kf8 {[%clk 0:00:15.8]} 38. Qb4+ {[%clk 0:00:48.1]} 38... Kg8 {[%clk
0:00:15]} 39. Qb3 {[%clk 0:00:43.6]} 39... Kf8 {[%clk 0:00:13.4]} 40. Qd5 {[%clk
0:00:43.6]} 40... Ng5 {[%clk 0:00:12.2]} 41. Kg2 {[%clk 0:00:38.9]} 41... Re7
{[%clk 0:00:11.2]} 42. Qd8+ {[%clk 0:00:38.3]} 42... Kf7 {[%clk 0:00:10.7]} 43.
Rc5 {[%clk 0:00:35.4]} 43... Ne6 {[%clk 0:00:09.2]} 44. Bxe6+ {[%clk 0:00:32.3]}
44... Qxe6 {[%clk 0:00:10.1]} 45. Qh8 {[%clk 0:00:29.9]} 45... Qa2+ {[%clk
0:00:09.6]} 46. Kh3 {[%clk 0:00:30.1]} 46... Qf2 {[%clk 0:00:08.6]} 47. Qh7+
{[%clk 0:00:29.8]} 47... Ke6 {[%clk 0:00:08.8]} 48. Qxg6+ {[%clk 0:00:28.4]}
48... Kd7 {[%clk 0:00:09]} 49. Qc6+ {[%clk 0:00:28.2]} 49... Kd8 {[%clk
0:00:08.2]} 50. Qc8# {[%clk 0:00:29.1]} 1-0

[Event "Late-Titled-Tuesday-Blitz-May-14-2024"]
[Site "Chess.com"]
[Date "2024.05.14"]
[Round "6"]
[White "PNEPaul"]
[Black "ChEsper99"]
[Result "0-1"]
[WhiteElo "1915"]
[BlackElo "2242"]
[TimeControl "180+1"]
[EndTime "15:06:48 PDT"]
[Termination "ChEsper99 won on time"]

1. e4 {[%clk 0:02:34.5]} 1... c6 {[%clk 0:02:58.9]} 2. d4 {[%clk 0:02:33.3]}
2... d5 {[%clk 0:02:59.8]} 3. Nc3 {[%clk 0:02:33.3]} 3... dxe4 {[%clk
0:02:59.2]} 4. f3 {[%clk 0:02:33.4]} 4... e5 {[%clk 0:02:41]} 5. d5 {[%clk
0:02:32.5]} 5... Nf6 {[%clk 0:02:30.1]} 6. fxe4 {[%clk 0:02:29]} 6... Bb4 {[%clk
0:02:30.4]} 7. Bg5 {[%clk 0:02:16]} 7... h6 {[%clk 0:02:18.4]} 8. Bxf6 {[%clk
0:02:13.6]} 8... Qxf6 {[%clk 0:02:19.3]} 9. Nf3 {[%clk 0:02:13.5]} 9... Bg4
{[%clk 0:02:13.5]} 10. Be2 {[%clk 0:02:12.3]} 10... Bxc3+ {[%clk 0:02:08.9]} 11.
bxc3 {[%clk 0:02:11.6]} 11... cxd5 {[%clk 0:02:07.5]} 12. Qxd5 {[%clk
0:02:09.3]} 12... Nc6 {[%clk 0:01:56.9]} 13. O-O {[%clk 0:02:02.7]} 13... Bxf3
{[%clk 0:01:40.3]} 14. Rxf3 {[%clk 0:01:56.1]} 14... Qe7 {[%clk 0:01:17.5]} 15.
Raf1 {[%clk 0:01:34.3]} 15... f6 {[%clk 0:01:17.3]} 16. Bb5 {[%clk 0:01:21.3]}
16... Rd8 {[%clk 0:01:02.4]} 17. Qb3 {[%clk 0:01:19.4]} 17... a6 {[%clk
0:00:53.6]} 18. Bxc6+ {[%clk 0:01:13.5]} 18... bxc6 {[%clk 0:00:54.5]} 19. Qb6
{[%clk 0:01:06.3]} 19... O-O {[%clk 0:00:45.3]} 20. Qxc6 {[%clk 0:01:05.6]}
20... Rc8 {[%clk 0:00:36.7]} 21. Qxa6 {[%clk 0:01:03.4]} 21... Kh8 {[%clk
0:00:26]} 22. Qa4 {[%clk 0:00:54.3]} 22... Ra8 {[%clk 0:00:24.6]} 23. Qb3 {[%clk
0:00:54]} 23... Rfb8 {[%clk 0:00:24.5]} 24. Qc4 {[%clk 0:00:46.8]} 24... Rc8
{[%clk 0:00:24.7]} 25. Qd3 {[%clk 0:00:39.7]} 25... Rxa2 {[%clk 0:00:22]} 26. h3
{[%clk 0:00:38.8]} 26... Raa8 {[%clk 0:00:14.9]} 27. c4 {[%clk 0:00:24.7]} 27...
Qc5+ {[%clk 0:00:13.5]} 28. Kh2 {[%clk 0:00:14.6]} 28... Qxc4 {[%clk 0:00:13.5]}
29. Qxc4 {[%clk 0:00:12.3]} 29... Rxc4 {[%clk 0:00:14.4]} 30. Rg3 {[%clk
0:00:07.9]} 30... Rxe4 {[%clk 0:00:10.5]} 31. Rd1 {[%clk 0:00:07.7]} 31... Ra7
{[%clk 0:00:10.6]} 32. Rd8+ {[%clk 0:00:07]} 32... Kh7 {[%clk 0:00:10.6]} 33.
Rc8 {[%clk 0:00:07.1]} 33... Rb4 {[%clk 0:00:04]} 34. c4 {[%clk 0:00:06.6]}
34... Rbb7 {[%clk 0:00:04.6]} 35. c5 {[%clk 0:00:05.6]} 35... Rc7 {[%clk
0:00:04.8]} 36. Rxc7 {[%clk 0:00:05.8]} 36... Rxc7 {[%clk 0:00:05.7]} 37. Rc3
{[%clk 0:00:05.7]} 37... Kg6 {[%clk 0:00:05.7]} 38. Kg3 {[%clk 0:00:06]} 38...
f5 {[%clk 0:00:06.3]} 39. Kf3 {[%clk 0:00:05.8]} 39... Kf6 {[%clk 0:00:06.9]}
40. g4 {[%clk 0:00:05.9]} 40... g6 {[%clk 0:00:06.8]} 41. gxf5 {[%clk
0:00:05.5]} 41... gxf5 {[%clk 0:00:07.7]} 42. Ke3 {[%clk 0:00:05.4]} 42... Ke6
{[%clk 0:00:08.1]} 43. Kd3 {[%clk 0:00:04.6]} 43... Kd5 {[%clk 0:00:08.4]} 0-1

[Event "Late-Titled-Tuesday-Blitz-May-14-2024"]
[Site "Chess.com"]
[Date "2024.05.14"]
[Round "6"]
[White "AungTZ"]
[Black "miraitrunks"]
[Result "0-1"]
[WhiteElo "2080"]
[BlackElo "2237"]
[TimeControl "180+1"]
[EndTime "15:06:49 PDT"]
[Termination "miraitrunks won on time"]

1. c4 {[%clk 0:02:59.2]} 1... c5 {[%clk 0:02:42.8]} 2. Nf3 {[%clk 0:02:57.8]}
2... Nc6 {[%clk 0:02:42.8]} 3. d4 {[%clk 0:02:57.6]} 3... cxd4 {[%clk
0:02:43.7]} 4. Nxd4 {[%clk 0:02:58.5]} 4... e5 {[%clk 0:02:42.5]} 5. Nb5 {[%clk
0:02:58.1]} 5... d6 {[%clk 0:02:42.7]} 6. N1c3 {[%clk 0:02:57.8]} 6... a6 {[%clk
0:02:42.8]} 7. Na3 {[%clk 0:02:57.9]} 7... Be6 {[%clk 0:02:42.3]} 8. e4 {[%clk
0:02:49.9]} 8... Nf6 {[%clk 0:02:40.9]} 9. Bg5 {[%clk 0:02:49.2]} 9... Be7
{[%clk 0:02:39.5]} 10. Bxf6 {[%clk 0:02:49.2]} 10... Bxf6 {[%clk 0:02:37.6]} 11.
Be2 {[%clk 0:02:49]} 11... O-O {[%clk 0:02:36.5]} 12. O-O {[%clk 0:02:38.7]}
12... Bg5 {[%clk 0:02:35.5]} 13. Nc2 {[%clk 0:02:34.4]} 13... f5 {[%clk
0:02:33.4]} 14. exf5 {[%clk 0:02:20.5]} 14... Bxf5 {[%clk 0:02:34.3]} 15. Bg4
{[%clk 0:02:16.7]} 15... Rc8 {[%clk 0:02:13.6]} 16. Bxf5 {[%clk 0:02:15.1]}
16... Rxf5 {[%clk 0:01:40.3]} 17. Qg4 {[%clk 0:02:13.4]} 17... Qf6 {[%clk
0:01:38.7]} 18. Nd5 {[%clk 0:02:11.3]} 18... Qf7 {[%clk 0:01:38.6]} 19. Nce3
{[%clk 0:02:04.9]} 19... Bxe3 {[%clk 0:01:37.1]} 20. fxe3 {[%clk 0:02:04.6]}
20... Rf8 {[%clk 0:01:29.5]} 21. Rxf5 {[%clk 0:01:43.4]} 21... Qxf5 {[%clk
0:01:30.4]} 22. Qxf5 {[%clk 0:01:43.2]} 22... Rxf5 {[%clk 0:01:31.3]} 23. b4
{[%clk 0:01:43]} 23... Kf7 {[%clk 0:01:28.7]} 24. a4 {[%clk 0:01:41.1]} 24... e4
{[%clk 0:01:27.4]} 25. b5 {[%clk 0:01:39.3]} 25... Ne5 {[%clk 0:01:27.3]} 26.
Nb6 {[%clk 0:00:59.2]} 26... Nd3 {[%clk 0:01:21]} 27. bxa6 {[%clk 0:00:50.6]}
27... bxa6 {[%clk 0:01:11.3]} 28. Rb1 {[%clk 0:00:50.4]} 28... Rf2 {[%clk
0:01:06.5]} 29. Nd5 {[%clk 0:00:41.2]} 29... Re2 {[%clk 0:01:03.2]} 30. h3
{[%clk 0:00:30.1]} 30... Ra2 {[%clk 0:00:57]} 31. Rb7+ {[%clk 0:00:26.6]} 31...
Kg6 {[%clk 0:00:57.2]} 32. Nc3 {[%clk 0:00:20.1]} 32... Rc2 {[%clk 0:00:47.4]}
33. Nxe4 {[%clk 0:00:19.7]} 33... Rxc4 {[%clk 0:00:47.6]} 34. Nxd6 {[%clk
0:00:17.2]} 34... Rxa4 {[%clk 0:00:47.8]} 35. Rb6 {[%clk 0:00:16.5]} 35... Ra1+
{[%clk 0:00:42.7]} 36. Kh2 {[%clk 0:00:16.1]} 36... Ne1 {[%clk 0:00:32.7]} 37.
e4 {[%clk 0:00:11.6]} 37... Ra2 {[%clk 0:00:32.5]} 38. Nf5+ {[%clk 0:00:09.3]}
38... Kg5 {[%clk 0:00:31.3]} 39. Ne3 {[%clk 0:00:09.2]} 39... Re2 {[%clk
0:00:28.9]} 40. Rb3 {[%clk 0:00:06.3]} 40... Kf4 {[%clk 0:00:24.9]} 41. Nf5
{[%clk 0:00:04.4]} 41... Rxg2+ {[%clk 0:00:22.7]} 42. Kh1 {[%clk 0:00:04.3]}
42... Kxe4 {[%clk 0:00:22.8]} 43. Nd6+ {[%clk 0:00:03.6]} 43... Kd4 {[%clk
0:00:20.5]} 0-1

[Event "Late-Titled-Tuesday-Blitz-May-14-2024"]
[Site "Chess.com"]
[Date "2024.05.14"]
[Round "6"]
[White "Jarming"]
[Black "Kiborg95"]
[Result "1-0"]
[WhiteElo "2692"]
[BlackElo "2883"]
[TimeControl "180+1"]
[EndTime "15:06:50 PDT"]
[Termination "Jarming won by resignation"]

1. c4 {[%clk 0:02:59.1]} 1... d6 {[%clk 0:03:00.4]} 2. g3 {[%clk 0:02:59.3]}
2... g6 {[%clk 0:03:00.2]} 3. Bg2 {[%clk 0:03:00.2]} 3... Bg7 {[%clk 0:03:00.9]}
4. e3 {[%clk 0:03:00.4]} 4... e5 {[%clk 0:03:01.1]} 5. Ne2 {[%clk 0:03:00.7]}
5... Nh6 {[%clk 0:03:01.8]} 6. Nbc3 {[%clk 0:03:00.5]} 6... O-O {[%clk
0:03:02.7]} 7. d4 {[%clk 0:03:00.3]} 7... Nd7 {[%clk 0:03:01.2]} 8. O-O {[%clk
0:02:59.5]} 8... c6 {[%clk 0:03:01.8]} 9. h3 {[%clk 0:02:59.8]} 9... f5 {[%clk
0:03:02.3]} 10. b3 {[%clk 0:02:56.8]} 10... Nf7 {[%clk 0:03:02.6]} 11. Qd2
{[%clk 0:02:50.7]} 11... Re8 {[%clk 0:03:01]} 12. dxe5 {[%clk 0:02:44.6]} 12...
dxe5 {[%clk 0:03:01.1]} 13. e4 {[%clk 0:02:45.1]} 13... f4 {[%clk 0:02:41.3]}
14. Rd1 {[%clk 0:02:33.5]} 14... Qf6 {[%clk 0:02:34.4]} 15. gxf4 {[%clk
0:02:20]} 15... exf4 {[%clk 0:02:35.3]} 16. Qxf4 {[%clk 0:02:20.7]} 16... Qxf4
{[%clk 0:02:34.1]} 17. Bxf4 {[%clk 0:02:21.6]} 17... Nc5 {[%clk 0:02:30.3]} 18.
Rac1 {[%clk 0:02:16.1]} 18... g5 {[%clk 0:02:14.1]} 19. Be3 {[%clk 0:02:11.9]}
19... Ne6 {[%clk 0:02:14.8]} 20. Nd4 {[%clk 0:02:10.1]} 20... Nf4 {[%clk
0:02:09]} 21. Kh2 {[%clk 0:02:03.7]} 21... Be5 {[%clk 0:02:04.4]} 22. Nf3 {[%clk
0:01:54.5]} 22... Bc7 {[%clk 0:02:00.5]} 23. Kg1 {[%clk 0:01:49]} 23... Ne5
{[%clk 0:00:56.7]} 24. Nxg5 {[%clk 0:01:11.2]} 24... Neg6 {[%clk 0:00:57]} 25.
Bf1 {[%clk 0:00:59.3]} 25... Nh4 {[%clk 0:00:57.1]} 26. Ne2 {[%clk 0:00:50.5]}
26... Nfg6 {[%clk 0:00:49.4]} 27. Nd4 {[%clk 0:00:39.2]} 27... Nf4 {[%clk
0:00:30.3]} 28. Ne2 {[%clk 0:00:37]} 28... Nh5 {[%clk 0:00:16.5]} 29. Nd4 {[%clk
0:00:35.1]} 29... Nf6 {[%clk 0:00:09.9]} 30. Nf5 {[%clk 0:00:25.4]} 30... Nxf5
{[%clk 0:00:07.5]} 31. exf5 {[%clk 0:00:26.3]} 31... Bxf5 {[%clk 0:00:08.1]} 32.
Rd4 {[%clk 0:00:20.6]} 32... Re7 {[%clk 0:00:07.7]} 33. Rf4 {[%clk 0:00:20.3]}
33... Bxf4 {[%clk 0:00:07.7]} 34. Bxf4 {[%clk 0:00:21.2]} 34... Rd8 {[%clk
0:00:06.5]} 35. Nf3 {[%clk 0:00:20.1]} 35... Ne4 {[%clk 0:00:03.7]} 36. Bg2
{[%clk 0:00:18]} 36... Rg7 {[%clk 0:00:03.7]} 37. Kf1 {[%clk 0:00:18.6]} 37...
Rf7 {[%clk 0:00:02.7]} 38. Ne5 {[%clk 0:00:18.1]} 38... Re7 {[%clk 0:00:02.1]}
39. Nf3 {[%clk 0:00:17.1]} 39... Bg6 {[%clk 0:00:00.5]} 40. Kg1 {[%clk
0:00:15.4]} 40... Rf8 {[%clk 0:00:00.7]} 41. Bh2 {[%clk 0:00:13.9]} 41... Rfe8
{[%clk 0:00:01.6]} 42. Bf4 {[%clk 0:00:13.7]} 42... Rf7 {[%clk 0:00:02.5]} 43.
Bh2 {[%clk 0:00:13.7]} 43... Ref8 {[%clk 0:00:02.8]} 44. Ne5 {[%clk 0:00:14.3]}
44... Re7 {[%clk 0:00:03.2]} 45. Ng4 {[%clk 0:00:14.5]} 45... Ng5 {[%clk
0:00:03.3]} 46. f4 {[%clk 0:00:13.9]} 46... Ne4 {[%clk 0:00:03.7]} 47. Re1
{[%clk 0:00:13]} 47... Bf5 {[%clk 0:00:02.8]} 48. Nh6+ {[%clk 0:00:12.8]} 48...
Kg7 {[%clk 0:00:03.4]} 49. Nxf5+ {[%clk 0:00:13.7]} 49... Rxf5 {[%clk
0:00:04.1]} 50. Rxe4 {[%clk 0:00:14.1]} 1-0

[Event "Late-Titled-Tuesday-Blitz-May-14-2024"]
[Site "Chess.com"]
[Date "2024.05.14"]
[Round "6"]
[White "zajka-molotok"]
[Black "Kosak12"]
[Result "0-1"]
[WhiteElo "2564"]
[BlackElo "2770"]
[TimeControl "180+1"]
[EndTime "15:06:50 PDT"]
[Termination "Kosak12 won by resignation"]

1. b3 {[%clk 0:03:00.9]} 1... g6 {[%clk 0:02:53.4]} 2. Bb2 {[%clk 0:03:01.8]}
2... Nf6 {[%clk 0:02:53.5]} 3. e3 {[%clk 0:03:01.6]} 3... Bg7 {[%clk 0:02:53.5]}
4. Nf3 {[%clk 0:03:02.5]} 4... O-O {[%clk 0:02:53.4]} 5. Be2 {[%clk 0:03:03]}
5... d5 {[%clk 0:02:48.2]} 6. O-O {[%clk 0:03:03.4]} 6... c5 {[%clk 0:02:48.2]}
7. d4 {[%clk 0:03:03.6]} 7... b6 {[%clk 0:02:45.8]} 8. c4 {[%clk 0:03:03.5]}
8... dxc4 {[%clk 0:02:38.4]} 9. Bxc4 {[%clk 0:03:03.4]} 9... Nbd7 {[%clk
0:02:36.5]} 10. Nc3 {[%clk 0:02:59.3]} 10... Bb7 {[%clk 0:02:35.8]} 11. Qe2
{[%clk 0:02:59]} 11... a6 {[%clk 0:02:30.4]} 12. a4 {[%clk 0:02:58.1]} 12...
cxd4 {[%clk 0:02:30.4]} 13. Nxd4 {[%clk 0:02:56.5]} 13... Ne5 {[%clk 0:02:29.3]}
14. Rfd1 {[%clk 0:02:53.2]} 14... Qc7 {[%clk 0:02:28.5]} 15. Rac1 {[%clk
0:02:28.5]} 15... Nxc4 {[%clk 0:02:27.2]} 16. bxc4 {[%clk 0:02:29.4]} 16... e6
{[%clk 0:02:13]} 17. a5 {[%clk 0:02:07.6]} 17... bxa5 {[%clk 0:01:59.6]} 18. Ba3
{[%clk 0:02:07.4]} 18... Rfc8 {[%clk 0:01:55.7]} 19. c5 {[%clk 0:02:07.6]} 19...
e5 {[%clk 0:01:22.8]} 20. Nb3 {[%clk 0:01:52.5]} 20... Bc6 {[%clk 0:01:20]} 21.
Qc4 {[%clk 0:01:44.4]} 21... Rab8 {[%clk 0:01:17.4]} 22. Rd6 {[%clk 0:01:29.6]}
22... Ne8 {[%clk 0:00:48.8]} 23. Rd2 {[%clk 0:01:08.7]} 23... Bf8 {[%clk
0:00:36.1]} 24. Rcd1 {[%clk 0:00:51]} 24... Rd8 {[%clk 0:00:28.3]} 25. Rxd8
{[%clk 0:00:45.6]} 25... Rxd8 {[%clk 0:00:29.2]} 26. Rxd8 {[%clk 0:00:44.9]}
26... Qxd8 {[%clk 0:00:29.4]} 27. Qxa6 {[%clk 0:00:44.8]} 27... a4 {[%clk
0:00:15.7]} 28. Nc1 {[%clk 0:00:15.9]} 28... Qd7 {[%clk 0:00:14.3]} 29. h3
{[%clk 0:00:15.2]} 29... Nc7 {[%clk 0:00:14.2]} 30. Qa5 {[%clk 0:00:12.4]} 30...
h5 {[%clk 0:00:13.5]} 31. N1e2 {[%clk 0:00:12.3]} 31... Ne6 {[%clk 0:00:12.2]}
32. Ng3 {[%clk 0:00:11.7]} 32... f5 {[%clk 0:00:10.3]} 33. Qb6 {[%clk
0:00:06.2]} 33... h4 {[%clk 0:00:10.1]} 34. Nge2 {[%clk 0:00:06.1]} 34... f4
{[%clk 0:00:08.5]} 35. exf4 {[%clk 0:00:05.1]} 35... exf4 {[%clk 0:00:08.9]} 36.
Qb4 {[%clk 0:00:05]} 36... f3 {[%clk 0:00:08.5]} 37. gxf3 {[%clk 0:00:05.6]}
37... Ng5 {[%clk 0:00:07.8]} 38. Qg4 {[%clk 0:00:04.3]} 38... Nxf3+ {[%clk
0:00:07.9]} 39. Kh1 {[%clk 0:00:04.3]} 39... Ne5+ {[%clk 0:00:06.3]} 40. f3
{[%clk 0:00:03.9]} 40... Nxg4 {[%clk 0:00:05.8]} 41. hxg4 {[%clk 0:00:04.8]}
41... Bxf3+ {[%clk 0:00:05.9]} 42. Kg1 {[%clk 0:00:04.8]} 42... Qxg4+ {[%clk
0:00:06.1]} 43. Kf2 {[%clk 0:00:04.7]} 43... Qg2+ {[%clk 0:00:04.9]} 44. Ke3
{[%clk 0:00:05]} 44... h3 {[%clk 0:00:05.2]} 45. Nf4 {[%clk 0:00:04.6]} 45...
Bh6 {[%clk 0:00:05.8]} 46. Nd5 {[%clk 0:00:02.8]} 46... Bxd5 {[%clk 0:00:05.7]}
0-1